bitfinex/quotes_SOLUSD_20241001
["timestamp","ask_amount","ask_price","bid_price","bid_amount"]
[1727816726140,21.352,145.7,145.64,17.1645]
[1727816726333,28.2154,145.7,145.65,6.8655]
[1727816726838,28.2154,145.7,145.64,24.0306]
[1727816727038,28.2154,145.7,145.64,17.1645]
[1727816727241,28.2154,145.7,145.65,6.8653]
[1727816727430,23.776884,145.69,145.64,17.1645]
[1727816727633,20.0,145.68,145.64,17.1645]
[1727816727849,20.0,145.68,145.64,24.0306]
[1727816728055,21.352,145.7,145.68,6.8642]
[1727816728529,21.352,145.7,145.66,17.1624]
[1727816728530,21.352,145.7,145.67,6.8647]
[1727816728736,21.352,145.7,145.68,6.8643]
[1727816728954,21.352,145.7,145.66,24.0273]
[1727816729167,21.352,145.7,145.66,17.1624]
[1727816729345,21.352,145.7,145.67,6.8647]
[1727816729834,15.3207,145.7,145.69,6.8638]
[1727816730573,15.3207,145.7,145.67,6.8644]
[1727816731141,15.3207,145.7,145.68,6.8643]
[1727816731439,15.3207,145.7,145.66,24.0272]
[1727816731639,15.3207,145.7,145.66,17.1624]
[1727816731862,22.97837405,145.75,145.74,6.8615]
[1727816732032,15.7996,145.75,145.62,34.3346]
[1727816732360,22.6607,145.75,145.7,6.8632]
[1727816732572,6.8615,145.74,145.69,6.8638]
[1727816734139,43.776884,145.74,145.68,17.1603]
[1727816734363,43.776884,145.74,145.67,6.8643]
[1727816734586,6.8642,145.69,145.65,17.1639]
[1727816734734,6.8638,145.69,145.65,17.1639]
[1727816734941,6.8635,145.7,145.65,24.0295]
[1727816735838,20.0,145.7,145.68,6.8642]
[1727816736060,20.0,145.7,145.65,6.8653]
[1727816736252,26.8635,145.7,145.64,17.1651]
[1727816736431,20.0,145.7,145.66,6.8651]
[1727816736631,20.0,145.7,145.64,17.1651]
[1727816736632,13.0514,145.69,145.64,17.1651]
[1727816736836,6.8645,145.68,145.64,17.1651]
[1727816737067,6.8648,145.67,145.56,72.28859259]
[1727816737256,6.8653,145.66,145.61,24.0362]
[1727816737563,6.8658,145.65,145.61,24.0362]
[1727816737756,6.8658,145.65,145.61,17.1687]
[1727816737955,15.6909,145.66,145.61,17.1687]
[1727816738187,22.5562,145.66,145.61,24.0363]
[1727816739480,15.6909,145.66,145.52,34.3586]
[1727816739636,20.0,145.65,145.61,6.8675]
[1727816739839,15.6909,145.66,145.65,6.8657]
[1727816740044,6.1875,145.69,145.67,6.8647]
[1727816740742,6.1875,145.69,145.66,24.0281]
[1727816741143,16.4811,145.7,145.66,17.163]
[1727816741562,16.4811,145.7,145.69,6.8638]
[1727816741868,6.6664,145.73,145.71,6.8629]
[1727816742073,6.6664,145.73,145.68,17.1599]
[1727816742476,20.0,145.72,145.68,17.1599]
[1727816742769,20.0,145.72,145.64,20.0]
[1727816743075,20.0,145.72,145.6,72.51659259]
[1727816743076,6.8634,145.7,145.65,24.0294]
[1727816744451,6.8634,145.7,145.65,24.0297]
[1727816744679,20.0,145.7,145.61,17.1684]
[1727816745088,6.8644,145.68,145.63,6.8663]
[1727816746076,6.8644,145.68,145.64,6.8662]
[1727816746562,6.8644,145.68,145.61,17.1684]
[1727816746873,20.0,145.7,145.61,17.1684]
[1727816746874,6.8655,145.66,145.61,17.1684]
[1727816747075,22.9752,145.67,145.61,17.1684]
[1727816747576,22.9752,145.67,145.56,34.3487]
[1727816747577,16.1104,145.67,145.63,17.1659]
[1727816747774,20.0,145.7,145.66,6.8653]
[1727816747987,15.8742,145.71,145.65,17.1636]
[1727816747988,35.8742,145.71,145.65,17.1636]
[1727816748197,20.0,145.68,145.65,17.1636]
[1727816748357,20.0,145.68,145.65,24.0293]
[1727816748670,20.0,145.68,145.66,6.8652]
[1727816748872,20.0,145.7,145.65,17.1636]
[1727816749045,20.0,145.68,145.65,17.1636]
[1727816749459,20.0,145.68,145.65,24.0293]
[1727816749662,20.0,145.69,145.65,24.0293]
[1727816749858,20.0,145.68,145.65,24.0293]
[1727816750688,15.8742,145.71,145.65,24.0293]
[1727816750689,26.8634,145.7,145.66,6.8651]
[1727816750865,20.0,145.7,145.66,6.8651]
[1727816751184,15.8742,145.71,145.68,6.8641]
[1727816751499,15.8742,145.71,145.68,8.23679104]
[1727816751788,15.8742,145.71,145.64,17.1654]
[1727816751996,15.8742,145.71,145.65,6.8656]
[1727816751997,6.8635,145.7,145.65,6.8656]
[1727816752679,20.0,145.68,145.64,17.1654]
[1727816752884,26.8647,145.68,145.64,17.1654]
[1727816753468,20.0,145.66,145.56,34.3487]
[1727816753669,20.0,145.63,145.56,34.3487]
[1727816753893,20.0,145.63,145.6,6.868]
[1727816754268,6.2852,145.7,145.63,6.8667]
[1727816754492,23.776884,145.69,145.63,6.8667]
[1727816754667,20.0,145.68,145.57,17.1735]
[1727816754863,6.8681,145.6,145.53,6.0042]
[1727816755086,23.776884,145.65,145.54,30.0]
[1727816755289,20.0,145.62,145.58,6.8686]
[1727816756083,20.0,145.62,145.59,6.8685]
[1727816756290,17.16,145.69,145.58,17.1717]
[1727816756497,20.0,145.64,145.6,6.868]
[1727816757379,20.0,145.66,145.62,6.8668]
[1727816758084,20.0,145.66,145.63,6.8666]
[1727816758482,20.0,145.66,145.62,6.867]
[1727816759402,20.0,145.69,145.63,1.37319424]
[1727816759696,20.0,145.69,145.65,6.8654]
[1727816760182,20.0,145.67,145.64,24.0308]
[1727816760384,20.0,145.67,145.64,17.165]
[1727816761199,6.8639,145.69,145.65,6.8657]
[1727816761377,6.8639,145.69,145.64,24.0309]
[1727816761987,6.8639,145.69,145.58,34.3451]
[1727816761988,23.776884,145.69,145.61,17.1687]
[1727816762498,6.8644,145.68,145.64,6.8661]
[1727816762808,6.2852,145.7,145.59,23.776884]
[1727816763096,20.0,145.68,145.63,17.1662]
[1727816763398,6.2852,145.7,145.67,6.8648]
[1727816763600,20.0,145.7,145.67,6.8648]
[1727816764495,15.8742,145.71,145.68,6.8641]
[1727816764700,13.0569,145.74,145.69,6.8637]
[1727816764910,6.8623,145.73,145.68,24.0247]
[1727816766300,15.0225,145.75,145.7,17.1579]
[1727816766801,6.8601,145.77,145.73,6.8619]
[1727816766996,6.8609,145.76,145.71,6.8626]
[1727816767212,6.15,145.78,145.66,15.6526]
[1727816767496,6.15,145.78,145.67,1.37231306]
[1727816767700,6.15,145.78,145.67,20.0]
[1727816768016,6.8611,145.75,145.7,6.8633]
[1727816768176,6.8615,145.74,145.69,17.1592]
[1727816768376,20.0,145.77,145.69,17.1592]
[1727816768686,6.8645,145.68,145.63,6.8663]
[1727816768876,6.8642,145.69,145.64,6.8661]
[1727816769389,6.8658,145.65,145.59,17.1703]
[1727816769587,6.2046,145.7,145.6,36.868]
[1727816769801,6.2046,145.7,145.59,17.1703]
[1727816769802,43.776884,145.67,145.59,17.1703]
[1727816770103,6.867,145.63,145.57,6.8694]
[1727816770281,20.0,145.62,145.55,17.175]
[1727816770478,40.939884,145.67,145.57,17.1728]
[1727816770679,40.939884,145.67,145.55,6.8704]
[1727816770680,6.8678,145.61,145.55,6.8704]
[1727816770999,6.868,145.61,145.54,24.0478]
[1727816771296,6.2227,145.62,145.54,17.1773]
[1727816771476,6.8686,145.59,145.54,17.1773]
[1727816771675,6.8692,145.58,145.51,24.0526]
[1727816771869,6.869,145.59,145.51,17.1807]
[1727816772082,22.4141,145.6,145.53,17.1774]
[1727816772304,20.0,145.61,145.54,1.3739464]
[1727816772518,20.0,145.61,145.57,6.8691]
[1727816772810,20.0,145.61,145.56,17.1745]
[1727816772993,13.09,145.62,145.56,17.1745]
[1727816773500,6.2227,145.62,145.57,6.8695]
[1727816774484,15.546,145.64,145.6,6.868]
[1727816774680,15.546,145.64,145.58,17.1715]
[1727816774681,22.4123,145.64,145.58,17.1715]
[1727816775684,6.8695,145.57,145.52,6.8717]
[1727816775909,15.546,145.64,145.55,6.8704]
[1727816775910,26.8685,145.6,145.55,6.8704]
[1727816776121,15.546,145.64,145.5,31.68159259]
[1727816776409,30.643584,145.63,145.58,6.869]
[1727816776790,30.643584,145.63,145.57,6.8694]
[1727816776791,6.8672,145.62,145.57,6.8694]
[1727816776990,15.546,145.64,145.57,6.8694]
[1727816776991,15.546,145.64,145.57,17.1729]
[1727816777199,15.546,145.64,145.53,66.03779259]
[1727816777399,22.4124,145.64,145.59,24.0388]
[1727816777611,22.4124,145.64,145.59,17.1703]
[1727816777612,6.867,145.63,145.59,17.1703]
[1727816778211,20.0,145.63,145.59,24.0388]
[1727816778411,15.546,145.64,145.6,6.868]
[1727816778604,13.1362,145.66,145.63,6.8667]
[1727816778605,6.2705,145.66,145.63,6.8667]
[1727816778808,16.063,145.68,145.64,6.8662]
[1727816779012,16.063,145.68,145.64,17.1655]
[1727816779320,6.0419,145.7,145.66,6.8648]
[1727816780525,6.0419,145.7,145.67,17.1615]
[1727816781427,6.0419,145.7,145.65,6.8653]
[1727816781596,43.776884,145.69,145.59,31.68159259]
[1727816781797,43.776884,145.69,145.61,17.169]
[1727816782909,43.776884,145.69,145.6,6.8677]
[1727816782910,6.8656,145.66,145.6,6.8677]
[1727816783319,43.776884,145.69,145.61,1.37339726]
[1727816783627,43.776884,145.69,145.65,6.8655]
[1727816783999,6.0419,145.7,145.66,1.37312086]
[1727816784222,6.0419,145.7,145.65,6.8653]
[1727816784523,6.0419,145.7,145.67,6.8644]
[1727816784701,6.0419,145.7,145.66,17.1623]
[1727816785027,12.9053,145.7,145.66,24.0275]
[1727816785527,6.2224,145.74,145.72,6.8624]
[1727816785698,6.2224,145.74,145.67,75.55762081]
[1727816785699,6.862,145.73,145.67,75.55762081]
[1727816785897,6.8628,145.72,145.67,24.026]
[1727816786101,6.8625,145.72,145.67,6.8647]
[1727816786401,6.2224,145.74,145.7,6.8633]
[1727816787035,13.0839,145.74,145.7,6.8633]
[1727816787396,13.0839,145.74,145.69,6.8638]
[1727816787705,13.0839,145.74,145.68,17.16]
[1727816787706,6.2224,145.74,145.68,17.16]
[1727816787919,13.084,145.74,145.69,6.8638]
[1727816788815,6.862,145.73,145.68,17.16]
[1727816789002,6.863,145.71,145.65,17.1641]
[1727816789209,6.8625,145.72,145.68,6.8641]
[1727816789408,26.8621,145.73,145.68,6.8641]
[1727816790032,20.0,145.73,145.69,6.8637]
[1727816790337,13.084,145.74,145.69,6.8637]
[1727816790701,6.2224,145.74,145.69,6.8637]
[1727816790926,6.862,145.73,145.69,6.8637]
[1727816791425,6.862,145.73,145.67,17.1613]
[1727816791426,6.862,145.73,145.68,6.8641]
[1727816792725,6.2224,145.74,145.61,40.3753]
[1727816792726,23.776884,145.72,145.64,17.1652]
[1727816792914,23.776884,145.73,145.61,40.3753]
[1727816793115,13.0844,145.74,145.69,6.8637]
[1727816793320,43.776884,145.73,145.64,6.8661]
[1727816793529,20.0,145.72,145.62,20.0]
[1727816793724,23.776884,145.71,145.62,20.0]
[1727816794027,6.8651,145.67,145.63,17.1665]
[1727816794332,6.8651,145.67,145.53,57.79672081]
[1727816794333,23.776884,145.67,145.53,57.79672081]
[1727816794535,13.414,145.65,145.61,6.8676]
[1727816794704,13.414,145.65,145.59,17.1707]
[1727816794902,13.414,145.65,145.6,6.868]
[1727816795208,6.5482,145.65,145.59,17.1707]
[1727816795410,6.8672,145.62,145.56,17.1745]
[1727816795725,15.9773,145.62,145.56,17.1745]
[1727816796028,15.9773,145.62,145.58,6.8686]
[1727816798017,15.9773,145.62,145.58,17.1719]
[1727816798335,22.8445,145.62,145.58,17.1719]
[1727816798732,6.8677,145.61,145.56,6.8699]
[1727816799032,6.8677,145.61,145.55,17.176]
[1727816799209,23.776884,145.61,145.55,24.046]
[1727816799413,22.8445,145.62,145.57,6.8694]
[1727816799732,22.8445,145.62,145.57,6.8695]
[1727816799914,15.9773,145.62,145.53,51.53162081]
[1727816800115,15.9773,145.62,145.58,6.8686]
[1727816800434,15.9773,145.62,145.59,6.8685]
[1727816800634,15.9773,145.62,145.6,1.373543]
[1727816800924,15.9773,145.62,145.61,6.8676]
[1727816801130,6.5482,145.65,145.61,6.8676]
[1727816801505,6.5482,145.65,145.61,17.1682]
[1727816801706,6.5482,145.65,145.61,24.0358]
[1727816802732,13.414,145.65,145.61,17.1682]
[1727816802914,6.8667,145.63,145.59,6.8685]
[1727816803241,6.5482,145.65,145.59,6.8685]
[1727816803419,6.8663,145.64,145.59,6.8685]
[1727816804018,6.8663,145.64,145.6,6.868]
[1727816804439,6.5482,145.65,145.58,17.1722]
[1727816804625,6.5482,145.65,145.61,6.8676]
[1727816804805,6.5482,145.65,145.6,17.1691]
[1727816805125,6.5482,145.65,145.61,6.8676]
[1727816805328,6.5482,145.65,145.62,6.8667]
[1727816805712,6.5482,145.65,145.6,17.1691]
[1727816805713,6.5482,145.65,145.61,6.8675]
[1727816807234,15.7551,145.66,145.62,1.37333421]
[1727816807434,15.7551,145.66,145.65,6.8657]
[1727816807819,15.7551,145.66,145.64,24.0311]
[1727816808022,15.7551,145.66,145.64,17.165]
[1727816808220,15.7551,145.66,145.64,6.8661]
[1727816808612,15.7551,145.66,145.63,24.0326]
[1727816808953,15.7551,145.66,145.65,6.8657]
[1727816809233,6.1289,145.69,145.65,17.1638]
[1727816809433,6.8643,145.68,145.63,6.8663]
[1727816809751,6.8643,145.68,145.6,6.868]
[1727816809752,6.8661,145.65,145.6,6.868]
[1727816810045,6.8661,145.65,145.59,17.1709]
[1727816810339,6.1289,145.69,145.6,1.37335336]
[1727816810632,6.1289,145.69,145.67,6.8648]
[1727816811140,6.1289,145.69,145.66,24.0281]
[1727816811633,6.1289,145.69,145.66,17.1629]
[1727816811838,22.4079,145.71,145.66,24.0277]
[1727816812029,6.8637,145.7,145.66,17.1629]
[1727816812211,26.8637,145.7,145.65,6.8655]
[1727816812411,20.0,145.7,145.62,31.75690436]
[1727816812616,20.0,145.7,145.65,24.029]
[1727816812835,6.864,145.69,145.65,24.029]
[1727816813417,20.0,145.7,145.65,17.1637]
[1727816813624,20.0,145.7,145.66,6.8651]
[1727816813625,26.8635,145.7,145.66,6.8651]
[1727816814029,26.8635,145.7,145.65,24.0294]
[1727816814030,6.8639,145.69,145.65,24.0294]
[1727816814742,6.8639,145.69,145.65,17.1637]
[1727816816532,6.8652,145.67,145.62,24.0345]
[1727816817037,6.8644,145.68,145.63,36.8666]
[1727816817242,23.776884,145.69,145.63,30.0]
[1727816817422,23.776884,145.69,145.62,17.1674]
[1727816817832,6.8654,145.66,145.62,17.1674]
[1727816818037,6.8648,145.67,145.62,24.0342]
[1727816818546,6.8648,145.67,145.63,6.8666]
[1727816818917,6.8648,145.67,145.62,17.1674]
[1727816819218,6.8648,145.67,145.62,24.0344]
[1727816820143,6.8656,145.66,145.62,17.1674]
[1727816820346,20.0,145.66,145.59,17.1709]
[1727816820526,20.0,145.66,145.62,6.8668]
[1727816820846,26.8654,145.66,145.61,24.0362]
[1727816821051,6.8658,145.65,145.61,24.0362]
[1727816821345,20.0,145.67,145.64,6.8658]
[1727816821521,15.5448,145.71,145.68,6.8639]
[1727816821725,15.5448,145.71,145.67,17.1615]
[1727816821928,15.5448,145.71,145.67,24.0258]
[1727816823266,15.5448,145.71,145.65,6.8657]
[1727816823425,6.8648,145.67,145.63,6.8666]
[1727816823617,6.8648,145.67,145.62,6.8671]
[1727816823845,6.8658,145.65,145.61,24.0362]
[1727816824036,6.8658,145.65,145.61,17.1687]
[1727816824643,6.089,145.69,145.46,32.95269302]
[1727816824950,6.8691,145.58,145.56,30.0]
[1727816825159,22.3557,145.59,145.56,30.0]
[1727816825937,15.487,145.59,145.52,17.1792]
[1727816826137,22.3556,145.59,145.54,6.8705]
[1727816826559,15.487,145.59,145.53,61.75690436]
[1727816826928,15.487,145.59,145.53,30.0]
[1727816827358,15.487,145.59,145.53,47.1782]
[1727816827732,6.2531,145.58,145.53,54.0495]
[1727816828051,15.487,145.59,145.55,17.1751]
[1727816828279,15.487,145.59,145.58,6.869]
[1727816828467,6.2531,145.62,145.59,6.8685]
[1727816829759,13.22510875,145.73,145.6,1.37359255]
[1727816829760,6.5751,145.66,145.6,1.37359255]
[1727816829947,6.5751,145.66,145.58,31.75690436]
[1727816830158,15.4147,145.67,145.66,6.8653]
[1727816830538,6.5751,145.7,145.66,6.8653]
[1727816830869,6.5751,145.7,145.67,6.8648]
[1727816831359,6.5751,145.7,145.66,17.1624]
[1727816831656,6.5751,145.7,145.68,6.8642]
[1727816831862,15.4147,145.71,145.68,6.8642]
[1727816832153,15.4147,145.71,145.67,6.8647]
[1727816832332,15.4147,145.71,145.69,6.8638]
[1727816832743,6.462,145.74,145.7,6.8634]
[1727816832964,6.462,145.74,145.7,8.2359338]
[1727816833269,13.3235,145.74,145.68,24.0238]
[1727816833458,13.3235,145.74,145.68,17.1599]
[1727816833459,6.462,145.74,145.68,17.1599]
[1727816833762,6.462,145.74,145.65,17.1641]
[1727816834065,6.862,145.73,145.66,31.37278144]
[1727816834358,20.0,145.73,145.66,30.0]
[1727816834659,6.8629,145.71,145.66,6.8649]
[1727816835156,6.8624,145.72,145.67,6.8647]
[1727816836763,6.8629,145.71,145.67,6.8647]
[1727816837657,6.8629,145.71,145.65,17.1641]
[1727816837857,6.8639,145.69,145.65,17.1641]
[1727816838066,6.863,145.71,145.65,17.1641]
[1727816838231,6.863,145.71,145.67,6.8648]
[1727816838437,20.0,145.71,145.65,17.1641]
[1727816838640,20.0,145.73,145.65,17.1641]
[1727816838858,23.6164,145.74,145.59,58.119384]
[1727816838859,6.8617,145.74,145.69,6.8638]
[1727816839135,6.8617,145.74,145.68,17.1604]
[1727816839136,20.0,145.74,145.68,17.1604]
[1727816839346,20.0,145.74,145.68,24.0246]
[1727816839547,6.8629,145.71,145.68,17.1604]
[1727816839744,6.8624,145.72,145.68,24.0247]
[1727816839943,20.0,145.74,145.66,30.0]
[1727816840236,20.0,145.7,145.58,17.1721]
[1727816840743,20.0,145.68,145.58,17.1721]
[1727816841163,20.0,145.66,145.62,6.867]
[1727816841548,23.18975461,145.71,145.62,17.1672]
[1727816841859,26.8637,145.7,145.64,24.0303]
[1727816842059,20.0,145.7,145.64,24.0303]
[1727816842456,20.0,145.7,145.62,6.8671]
[1727816842657,6.8653,145.66,145.62,6.8671]
[1727816842870,20.0,145.7,145.58,17.1722]
[1727816843044,6.8663,145.64,145.59,6.8682]
[1727816846042,6.5566,145.65,145.54,34.3529]
[1727816846250,6.868,145.61,145.56,36.8699]
[1727816846443,6.868,145.61,145.57,6.8695]
[1727816847365,6.8686,145.59,145.56,30.0]
[1727816847847,6.8686,145.59,145.55,6.8703]
[1727816848047,6.8677,145.61,145.56,8.24350796]
[1727816848247,6.8677,145.61,145.56,8.24370796]
[1727816848463,6.8677,145.61,145.56,6.8699]
[1727816848768,20.0,145.61,145.58,6.869]
[1727816848969,16.1803,145.64,145.58,17.1719]
[1727816849173,16.1803,145.64,145.61,6.8672]
[1727816850783,16.1803,145.64,145.6,17.1694]
[1727816850784,23.0467,145.64,145.6,17.1694]
[1727816850972,16.1803,145.64,145.6,17.1694]
[1727816851266,16.1803,145.64,145.61,6.8672]
[1727816851474,6.8648,145.67,145.63,6.8665]
[1727816852659,15.1227,145.72,145.65,55.53378836]
[1727816852973,15.1227,145.72,145.69,6.8638]
[1727816853375,15.1227,145.72,145.68,17.1602]
[1727816853663,21.9852,145.72,145.67,6.8648]
[1727816856168,15.1227,145.72,145.65,17.1642]
[1727816856475,43.776884,145.71,145.65,17.1642]
[1727816856774,20.0,145.7,145.63,36.8666]
[1727816856977,20.0,145.7,145.63,30.0]
[1727816856978,6.8653,145.66,145.63,30.0]
[1727816857177,6.866,145.65,145.59,17.1714]
[1727816857376,20.0,145.7,145.6,30.0]
[1727816857567,6.8642,145.69,145.64,6.8658]
[1727816857872,6.8648,145.67,145.63,24.0327]
[1727816858178,6.8653,145.66,145.61,6.8675]
[1727816858776,6.8653,145.66,145.62,6.867]
[1727816859381,20.0,145.68,145.6,47.17]
[1727816859550,6.8659,145.65,145.6,54.038]
[1727816859762,6.8659,145.65,145.6,24.038]
[1727816859978,6.8662,145.64,145.6,17.17]
[1727816860487,6.868,145.61,145.57,17.1732]
[1727816860653,23.776884,145.63,145.56,6.8696]
[1727816860853,6.8671,145.63,145.58,6.869]
[1727816861155,23.776884,145.63,145.57,6.8695]
[1727816861363,23.776884,145.63,145.53,66.11320436]
[1727816861364,41.8771,145.64,145.59,6.8682]
[1727816861953,35.0106,145.64,145.6,6.8679]
[1727816862378,6.8668,145.63,145.58,24.0404]
[1727816863360,23.776884,145.63,145.53,66.11320436]
[1727816863557,6.8686,145.59,145.55,47.1758]
[1727816863779,20.0,145.6,145.52,17.1795]
[1727816863963,21.9804,145.59,145.52,17.1795]
[1727816864274,26.8696,145.57,145.52,24.0513]
[1727816864577,26.8696,145.57,145.44,6.6109]
[1727816864578,23.776884,145.55,145.44,6.6109]
[1727816864761,6.872,145.52,145.47,6.8738]
[1727816864967,6.872,145.52,145.45,30.0]
[1727816864968,22.577,145.53,145.45,30.0]
[1727816865170,6.8728,145.5,145.45,30.0]
[1727816865556,6.8723,145.52,145.46,6.8747]
[1727816865756,6.8731,145.5,145.45,36.8751]
[1727816866055,26.8724,145.51,145.45,36.8751]
[1727816866464,26.8724,145.51,145.44,6.8754]
[1727816866465,6.8735,145.49,145.44,6.8754]
[1727816866672,23.776884,145.51,145.45,6.8751]
[1727816866673,30.649584,145.51,145.45,6.8751]
[1727816866870,20.0,145.5,145.43,17.1903]
[1727816867155,6.8757,145.44,145.31,7.61865943]
[1727816867349,6.8757,145.44,145.38,6.8785]
[1727816867350,13.4932,145.44,145.38,6.8785]
[1727816867557,21.9634,145.43,145.38,6.8785]
[1727816867767,45.740284,145.43,145.36,24.0766]
[1727816868056,45.740284,145.43,145.37,6.8786]
[1727816868251,45.740284,145.43,145.34,6.8801]
[1727816868252,65.740284,145.43,145.34,6.8801]
[1727816868555,6.8777,145.4,145.35,6.8798]
[1727816868757,6.8777,145.4,145.34,6.8799]
[1727816868956,6.8777,145.4,145.32,48.95940436]
[1727816868957,23.776884,145.39,145.32,17.2025]
[1727816869176,20.0,145.4,145.32,17.2025]
[1727816869557,20.0,145.4,145.36,6.8794]
[1727816869763,20.0,145.4,145.32,17.2025]
[1727816870075,20.0,145.42,145.35,17.1997]
[1727816870286,23.776884,145.41,145.35,17.1997]
[1727816870457,23.776884,145.41,145.36,6.879]
[1727816870652,23.776884,145.41,145.35,17.1997]
[1727816870882,30.653984,145.41,145.35,24.0796]
[1727816871172,20.0,145.42,145.36,1.37577943]
[1727816871580,20.0,145.42,145.32,31.75690436]
[1727816871776,20.0,145.42,145.39,6.878]
[1727816871981,20.0,145.42,145.38,24.074]
[1727816872475,20.0,145.42,145.38,17.1955]
[1727816873319,30.654084,145.41,145.36,6.8794]
[1727816873593,26.8767,145.42,145.36,6.8794]
[1727816874779,26.8767,145.42,145.37,6.8789]
[1727816875482,20.0,145.4,145.34,24.0797]
[1727816875779,26.8776,145.4,145.34,24.0797]
[1727816875984,20.0,145.4,145.35,6.8796]
[1727816876179,23.776884,145.39,145.34,17.1998]
[1727816876386,30.655284,145.39,145.34,17.1998]
[1727816876559,30.655284,145.39,145.34,24.0801]
[1727816877179,6.8776,145.4,145.35,6.8797]
[1727816877373,50.653784,145.42,145.36,6.8792]
[1727816877686,43.776884,145.42,145.36,17.1977]
[1727816877983,50.653484,145.42,145.37,6.8788]
[1727816878490,50.653484,145.42,145.31,31.75690436]
[1727816878491,6.878,145.39,145.34,6.88]
[1727816878689,43.776884,145.42,145.33,24.0828]
[1727816878869,43.776884,145.39,145.35,6.8799]
[1727816879071,20.0,145.39,145.36,6.8794]
[1727816879380,20.0,145.39,145.35,6.8798]
[1727816880305,15.0873,145.43,145.35,6.8798]
[1727816880306,30.653584,145.42,145.37,6.8789]
[1727816880462,6.8767,145.42,145.37,6.8789]
[1727816880664,15.0873,145.43,145.35,17.1989]
[1727816880992,21.9638,145.43,145.37,6.8788]
[1727816881485,7.17653375,145.46,145.43,6.876]
[1727816881657,29.3951,145.48,145.44,6.8753]
[1727816881658,22.5213,145.48,145.44,6.8753]
[1727816881864,22.5213,145.48,145.41,20.0]
[1727816882058,22.5213,145.48,145.4,31.75690436]
[1727816882488,22.5213,145.48,145.44,17.1883]
[1727816882785,6.1284,145.52,145.45,1.37497871]
[1727816882962,6.1284,145.52,145.47,17.1854]
[1727816883166,6.1284,145.52,145.47,24.0596]
[1727816883379,20.0,145.51,145.39,31.75690436]
[1727816883579,37.1817,145.51,145.41,17.1925]
[1727816883779,37.1817,145.51,145.39,31.75690436]
[1727816883780,20.0,145.48,145.44,6.8756]
[1727816883980,6.1284,145.52,145.43,17.1893]
[1727816884180,6.1284,145.52,145.46,6.8746]
[1727816884181,6.8728,145.51,145.46,6.8746]
[1727816884859,6.1284,145.52,145.42,17.1913]
[1727816885392,6.8738,145.48,145.43,6.8761]
[1727816885683,6.8744,145.47,145.42,24.0678]
[1727816886077,6.8753,145.45,145.4,6.8775]
[1727816886269,6.8747,145.46,145.41,6.8769]
[1727816886666,43.776884,145.51,145.39,48.95190436]
[1727816886861,17.1828,145.5,145.39,17.195]
[1727816887086,6.8756,145.44,145.39,24.073]
[1727816887481,20.0,145.45,145.42,6.8766]
[1727816887681,20.0,145.45,145.39,17.195]
[1727816887878,26.8753,145.45,145.4,6.8774]
[1727816888277,30.652984,145.44,145.39,17.195]
[1727816888475,30.652984,145.44,145.39,24.0726]
[1727816888788,21.9404,145.44,145.39,24.0726]
[1727816889088,21.9404,145.44,145.36,17.1986]